Cogmind - Beta 13 @@@ ROGUE MODE // 2024.04.16 @ 22:28:11 Player: Michael Result: Destroyed by 12-8D5(R) with Subdweller Laser Performance ------------- Evolutions (0) 0 Regions Visited (2) 400 Robots Destroyed (20) 100 Value Destroyed (419) 419 Prototype IDs (0) 0 Alien Tech Used (0) 0 Bonus (0) 0 TOTAL SCORE: 919 Bonus ------- None Cogmind --------- Core Integrity 0/250 Matter 14/300 Energy 100/100 System Corruption 0% Temperature Cool (6) Movement Core (350) Ox6 Location -10/Subcaves Parts ------- > --- POWER (1) -------- (None) > --- PROPULSION (2) --- (None) > --- UTILITY (2) ------ Large Storage Unit Visual Processing Unit > --- WEAPON (2) ------- Light Assault Rifle > --- INVENTORY (15) --- Ion Engine Ion Engine Flight Unit Flight Unit Flight Unit VTOL Module VTOL Module VTOL Module VTOL Module Heat Sink Large Battery (200) Light Assault Rifle Light Assault Rifle Barrage Gun Mace Peak State ------------ > --- POWER ------------ Ion Engine > --- PROPULSION ------- Light Treads Light Treads > --- UTILITY ---------- Large Storage Unit Visual Processing Unit > --- WEAPON ----------- Assault Rifle Mace > --- INVENTORY -------- Ion Engine Light Ion Engine Aluminum Leg Aluminum Leg Aluminum Leg VTOL Module VTOL Module VTOL Module VTOL Module Targeting Computer Light Assault Rifle Light Assault Rifle Grenade Launcher Mace Mace [Rating: 11] Favorites ----------- Power Ion Engine Engine Ion Engine Propulsion Light Treads Treads Light Treads Wheel Wheel Utility Visual Processing Unit Storage Large Storage Unit Processor Visual Processing Unit Weapon Mace Energy Gun Medium Laser Ballistic Gun Assault Rifle Ballistic Cannon Light Cannon Launcher Grenade Launcher Impact Weapon Mace Build | -11 -10 -10 ------- Run | Yrd Mat Sub Slots Evolved . | . . . Power . | . . . Propulsion . | . . . Utility . | . . . Weapon . | . . . Parts Attached 22 | 6 12 4 Power 5 | 1 4 . Engine 5 | 1 4 . Core . | . . . Reactor . | . . . Propulsion 5 | 2 2 1 Treads 3 | . 2 1 Leg . | . . . Wheel 2 | 2 . . Hover . | . . . Flight . | . . . Utility 3 | 1 2 . Device . | . . . Storage 2 | 1 1 . Processor 1 | . 1 . Hackware . | . . . Protection . | . . . Artifact . | . . . Weapon 9 | 2 4 3 Energy Gun 1 | 1 . . Energy Cannon . | . . . Ballistic Gun 2 | 1 . 1 Ballistic Cannon 1 | . 1 . Launcher 2 | . 1 1 Special Weapon . | . . . Impact Weapon 3 | . 2 1 Slashing Weapon . | . . . Piercing Weapon . | . . . Special Melee Weapon . | . . . Unidentified Prototypes . | . . . Parts Lost 5 | . . 5 Power 1 | . . 1 Propulsion 3 | . . 3 Utility . | . . . Weapon 1 | . . 1 Highest Loss Streak 3 | . . 3 To Critical Strikes . | . . . Average Slot Usage (%) 90 | . 98 73 Engine 10 | . 13 2 Treads 22 | . 25 15 Wheel 2 | . 2 . Storage 14 | . 14 14 Processor 13 | . 12 14 Energy Gun 1 | . 1 . Ballistic Gun 12 | . 11 13 Ballistic Cannon 3 | . 2 7 Impact Weapon 10 | . 12 5 Naked Turns . | . . . Heaviest Build 30 | 14 30 30 Greatest Support 40 | 20 40 40 Greatest Overweight (x) 7 | 1 1 7 Average Overweight (x) . | . . . Largest Inventory Capacity 15 | 8 15 15 Average Capacity 14 | 7 14 15 Most Carried 15 | 6 15 15 Average Carried 14 | 3 14 15 Final Capacity 15 | 8 15 15 Final Carried 15 | 6 15 15 Class Distribution -------------------- 100% | Mutant Dominant Class ---------------- Mutant | -10/Materials Mutant | -10/Subcaves Resources | -11 -10 -10 ----------- Run | Yrd Mat Sub Matter Collected 469 | 201 214 54 Remotely . | . . . Salvage Created 451 | . 366 85 Parts 30 | . 22 8 Haulers Intercepted . | . . . Recyclers Shooed 1 | . 1 . Parts Field Recycled . | . . . Retrieved Matter . | . . . Parts Self-Destructed 13 | . . 13 Prevented . | . . . Kills | -11 -10 -10 ------- Run | Yrd Mat Sub Combat Hostiles Destroyed 18 | . 12 6 Melee 2 | . 2 . Guns 11 | . 7 4 Cannons 2 | . . 2 AOE 2 | . 2 . Classes Destroyed 5 | . 4 1 Recycler 1 | . 1 . Watcher 1 | . 1 . Swarmer 10 | . 6 4 Grunt 6 | . 6 . Subdweller 2 | . . 2 Best Kill Streak 4 | . 4 3 Combat Bots Only 3 | . 3 3 Max Kills in Single Turn 1 | . 1 1 Gunslinging . | . . . Exploded 1 | . 1 . Melee 1 | . 1 . Uniques/NPCs Destroyed . | . . . Combat | -11 -10 -10 -------- Run | Yrd Mat Sub Hostile Shots Fired 126 | . 62 64 Missed 39 | . 18 21 Damage Taken 1317 | . 455 862 Core 267 | . 81 186 Absorbed by Shields . | . . . Regen/Repaired (Parts) 13 | . 13 . Core Remaining (%) 100 | 100 . . Volleys Fired 72 | . 31 41 Largest 2 | . 2 2 Hottest 70 | . 70 55 Shots Fired 137 | . 55 82 Gun 91 | . 50 41 Cannon 39 | . . 39 Launcher 7 | . 5 2 Special . | . . . Kinetic 111 | . 31 80 Thermal 19 | . 19 . Explosive 7 | . 5 2 Electromagnetic . | . . . Robot Hit Streak 11 | . 11 8 Robot Miss Streak 10 | . 8 10 Penetration Max . | . . . Secondary Targets 1 | . 1 . Max Gunslinging Chain 1 | . 1 . Shots Hit Robots 59 | . 33 26 Core Hits 27 | . 16 11 Critical Kills 1 | . 1 . Critical Parts Destroyed 2 | . 2 . Critical Strikes 5 | . 4 1 Burn 1 | . 1 . Destroy 1 | . 1 . Blast 1 | . . 1 Smash 2 | . 2 . Melee Attacks 13 | . 8 5 Impact 13 | . 8 5 Slashing . | . . . Piercing . | . . . Sneak Attacks . | . . . Combat Hostiles . | . . . Follow-up Attacks . | . . . Damage Inflicted 1382 | . 872 510 Guns 494 | . 386 108 Cannons 227 | . . 227 Explosions 440 | . 265 175 Melee 221 | . 221 . Ramming . | . . . Kinetic 560 | . 225 335 Thermal 161 | . 161 . Explosive 440 | . 265 175 Electromagnetic . | . . . Impact 221 | . 221 . Slashing . | . . . Piercing . | . . . Highest Corruption . | . . . Average Corruption . | . . . Corruption Purged . | . . . Corruption Blocked . | . . . Overload Shots . | . . . Overflow Damage 63 | . 63 . Projectiles . | . . . Explosions . | . . . Melee 63 | . 63 . Knockbacks 3 | . . 3 Impact . | . . . Kinetic 3 | . . 3 Secondary . | . . . Self-Inflicted Damage 3 | . . 3 Shots 1 | . . 1 Rammed . | . . . Targets Rammed . | . . . Kicked . | . . . Crushed . | . . . Highest Temperature 99 | . 99 . Average Temperature 34 | . 34 . Received Heat Transfer 249 | . 171 78 Siege Activations . | . . . Robots Corrupted . | . . . Combat Hostiles . | . . . Parts Fried 1 | . 1 . Impact Corruptions 3 | . 3 . Robots Melted . | . . . Combat Hostiles . | . . . Parts Melted . | . . . Heat Transferred 555 | . 555 . Parts Sabotaged . | . . . Parts Stolen . | . . . Parts Stripped . | . . . Power Chain Reactions . | . . . Alert | -11 -10 -10 ------- Run | Yrd Mat Sub Peak Influence 150 | . 150 . Initial . | . . . Average 45 | . 46 . Maximum Alert Level . | . . . Low Security (%) 100 | 100 100 . Level 1 . | . . . Level 2 . | . . . Level 3 . | . . . Level 4 . | . . . Level 5 . | . . . High Security . | . . . Max Security . | . . . Squads Dispatched 2 | . 2 . Investigation 1 | . 1 . Extermination . | . . . Reinforcement 1 | . 1 . Assault . | . . . Garrison . | . . . Intercept . | . . . Searches Triggered . | . . . Construction Impeded . | . . . Haulers Reinforced . | . . . Active Scanning Responses . | . . . Cargo Convoy Interrupts . | . . . Stealth | -11 -10 -10 --------- Run | Yrd Mat Sub Distress Signals 1 | . 1 . Communications Jammed . | . . . Distress Signals . | . . . Times Spotted 94 | . 19 75 Peak Tracking Total 6 | . 4 6 Tactical Retreats 9 | . 1 8 Traps | -11 -10 -10 ------- Run | Yrd Mat Sub Traps Triggered 2 | . 1 1 Indirectly . | . . . Trap Hack Attempts . | . . . Triggered . | . . . Disarmed . | . . . Reprogrammed . | . . . Reused . | . . . Traps Extracted . | . . . Installed . | . . . Triggered . | . . . Machines | -11 -10 -10 ---------- Run | Yrd Mat Sub Machines Disabled . | . . . Max in Single Turn . | . . . Machines Repaired . | . . . Machines Dismantled . | . . . Machines Sabotaged . | . . . Overloaded Fab Kills . | . . . Hacking | -11 -10 -10 --------- Run | Yrd Mat Sub Machines Accessed 4 | . 4 . Terminals 1 | . 1 . Fabricators . | . . . Repair Stations 1 | . 1 . Recycling Units 2 | . 2 . Scanalyzers . | . . . Garrison Access . | . . . Total Hacks 9 | . 9 . Successful 5 | . 5 . Failed 4 | . 4 . Catastrophic . | . . . Database Lockouts . | . . . Manual . | . . . Terminals 2 | . 2 . Fabricators . | . . . Repair Stations 3 | . 3 . Recycling Units 4 | . 4 . Scanalyzers . | . . . Garrison Access . | . . . Terminal Hacks 1 | . 1 . Zone Layout 1 | . 1 . Fabricator Hacks . | . . . Repair Station Hacks 2 | . 2 . Scan Component 1 | . 1 . Repair 1 | . 1 . Recycling Unit Hacks 2 | . 2 . Report Inventory 2 | . 2 . Scanalyzer . | . . . Garrison Access Hacks . | . . . Unauthorized Hacks . | . . . Terminals . | . . . Fabricators . | . . . Repair Stations . | . . . Recycling Units . | . . . Scanalyzers . | . . . Garrison Access . | . . . Data Cores Recovered . | . . . Used . | . . . Hacking Detections 2 | . 2 . Full Trace Events . | . . . Feedback Events . | . . . Feedback Blocked . | . . . Robot Schematics Acquired . | . . . Robots Built . | . . . Authchips . | . . . Time . | . . . Total Robot Build Rating . | . . . Part Schematics Acquired . | . . . Parts Built . | . . . Authchips . | . . . Time . | . . . Total Part Build Rating . | . . . Parts Repaired 1 | . 1 . Time 26 | . 26 . Parts Recycled . | . . . Recycled Matter . | . . . Retrieved Matter . | . . . Retrieved Components . | . . . Parts Scanalyzed . | . . . Part Schematics Acquired . | . . . Parts Damaged . | . . . Bothacking | -11 -10 -10 ------------ Run | Yrd Mat Sub Used RIF Installer . | . . . Robots Hacked . | . . . Non-combat . | . . . Combat . | . . . Robot Hacks Applied . | . . . Relay Couplers Released . | . . . Fabnet Peak Effective % . | . . . Robots Rewired . | . . . Allies Hacked . | . . . Hacks Repelled . | . . . Allies | -11 -10 -10 -------- Run | Yrd Mat Sub Total Allies . | . . . Largest Group . | . . . Highest-Rated Group . | . . . Highest-Rated Ally . | . . . Total Orders . | . . . Ally Attacks . | . . . Total Damage . | . . . Kills . | . . . Allies Corrupted . | . . . Allies Melted . | . . . Intel | -11 -10 -10 ------- Run | Yrd Mat Sub Robot Analysis Total . | . . . Derelict Logs Recovered 1 | . . 1 Drone Launches . | . . . Drone Recoveries . | . . . Exploration | -11 -10 -10 ------------- Run | Yrd Mat Sub Turns Passed 3074 | 53 2078 943 Spaces Moved 1331 | 46 990 295 Core 12 | 7 . 5 Treads 1134 | . 844 290 Legs . | . . . Wheels 185 | 39 146 . Hover . | . . . Flight . | . . . Fastest Speed 50 | 50 80 160 Average Speed 167 | 76 148 244 Slowest Speed 400 | 95 160 400 Overloaded Moves . | . . . Propulsion Burnouts . | . . . Robots Hopped . | . . . Cave-ins Triggered . | . . . Exploration Rate (%) 38 | 3 97 15 Regions Visited 2 Branch Regions 1 Pre-discovered Areas . | . . . Known Exits Taken . | . . . Unknown Exits Taken 2 | 1 1 . Scrap Searched . | . . . Spaces Dug . | . . . Terrain Destroyed 36 | . 30 6 Melee . | . . . Projectile . | . . . AOE 36 | . 30 6 Terrain Rammed . | . . . Walls Destroyed . | . . . Machines Disabled . | . . . Actions | -11 -10 -10 --------- Run | Yrd Mat Sub Total 2024 | 63 1529 432 Wait 532 | . 448 84 Move 1329 | 45 989 295 Hop . | . . . Pick Up 37 | 12 24 1 Fast Attach 7 | . 5 2 Attach 6 | 6 . . Detach . | . . . Swap 9 | . 7 2 Drop 19 | . 17 2 Fire 72 | . 31 41 Melee 13 | . 8 5 Ram . | . . . Kick . | . . . Crush . | . . . Escape Stasis . | . . . Rewire . | . . . Trap . | . . . Miscellaneous . | . . . Route ------- -11/Scrapyard -10/Materials (discovered 5 exits: [*Mat x3] / [*Min] / [*Sub]) -10/Subcaves (discovered 2 exits: [*Mat] / [*Rec]) History --------- Turn | Location | Event 30 | -11/Scrapyard | Discovered new exit (range 16) 54 | -11/Scrapyard | Entered Materials 203 | -10/Materials | Discovered new exit (range 11) 321 | -10/Materials | Build established: Mutant 394 | -10/Materials | Discovered new exit (range 18) 503 | -10/Materials | Repaired Ion Engine 1228 | -10/Materials | Discovered new exit (range 5) 1727 | -10/Materials | Discovered new exit (range 4) 2110 | -10/Materials | Discovered new exit (range 4) 2132 | -10/Materials | Entered Subcaves 2155 | -10/Subcaves | Discovered new exit (range 14) 2211 | -10/Subcaves | Shifting Twisted Machinery released Barrage Gun 2213 | -10/Subcaves | Discovered new exit (range 9) 2231 | -10/Subcaves | Shifting Twisted Machinery released Spk. Treads 2278 | -10/Subcaves | Core integrity fell below 50% 2310 | -10/Subcaves | Lost 3 parts (1p2n) 3048 | -10/Subcaves | Ambushed by Subdwellers from Twisted Machinery 3065 | -10/Subcaves | Core integrity fell below 20% 3075 | -10/Subcaves | Destroyed by 12-8D5(R) with Subdweller Laser Last Messages --------------- Sink, destroying it. 02452_ XQ-F5N(u) tweaks Twisted Machinery. 02475_ XQ-F5N(u) builds Twisted Machinery. 02482_ XQ-F5N(u) tweaks Twisted Machinery. 02616_ Dropped Lgt. Cannon. 02637_ Acquired 15 matter. 02643_ Subatomizers dissect the Lgt. Cannon, destroying it. 02645_ Acquired 4 matter. 02671_ Acquired 9 matter. 02678_ Acquired 10 matter. 02712_ Acquired Mace. 02967_ XQ-F5N(u) tweaks Twisted Machinery. 03027_ Triggered Piercing Trap. 03027_ Spikes shoot up from the floor. 03027_ Critical hit (Impale). 03048_ B5-VDF(R) emerges from the Twisted Machinery. 03071_ Grenade Launcher destroyed. 03073_ Spk. Treads destroyed. Map ----- +----------------------------------------------------+ | ?????????????????????????????????????????????????? | | ?????????????????????????????????????????????????? | | ?????????????????????????????????????????????????? | | ?????????????????????????????????????????????????? | | ?????????????????????????????????????????????????? | | ?????????????????????????????????????????????????? | | ?????????????????????????????????????????????????? | | ?????????????????????????????????????????????????? | | ???????????????????? ???????????????????????????? | | ???????????????????# ???????#####??????#######?? | | ??????????????????# ??????## ####???# ## "##? | | ??????????????????# ??#?### ##### ""#? | | ???????????????????# # # ""## | | ???????????###????## """# | | ???????????# #### """ " | | ???????????# ?# # ##### ###"" | | ???????????# "# #??????## ### #?##" | | ???????????# "^# ?????## ##?# " #??### | | ???????????# ^ " # ##????# ####"""" ##???# | | ???????????# "" ## #????# """""""""##??# | | ????????????# ^ ^ #????# """"" ##?# | | ?????????????#" ###??# """" ""#?## | | ?????????????# ##?# """ " ##?? | | ????????????##" ### """ "" "#?# | | ???????# ### "" R ^ " "#?# | | ???????# "" R ^@ " "#?# | | ???????#"" ###^# # ##########?? | | ???????#" " # ###?###### #??????????? | | ???????#" """ ??###?????????# ##### ##??????????? | | ??????????#?????????????????###???####???????????? | | ?????????????????????????????????????????????????? | | ?????????????????????????????????????????????????? | | ?????????????????????????????????????????????????? | | ?????????????????????????????????????????????????? | | ?????????????????????????????????????????????????? | | ?????????????????????????????????????????????????? | | ?????????????????????????????????????????????????? | | ?????????????????????????????????????????????????? | | ?????????????????????????????????????????????????? | | ?????????????????????????????????????????????????? | | ?????????????????????????????????????????????????? | | ?????????????????????????????????????????????????? | | ?????????????????????????????????????????????????? | | ?????????????????????????????????????????????????? | | | | | | | | | | | | | +----------------------------------------------------+ Best States ------------- Heat Dissipation 25 Energy Generation 10 Energy Capacity 250 Matter Stores 300 Matter Capacity 300 Sight Range 18 Terrain Scan Density 10 Evasion (%) 44 Recoil Reduction 2 Item Schematics ----------------- None Robot Schematics ------------------ None Fabricated ------------ Nothing Alien Tech Used ----------------- None Achievements -------------- None Challenges ------------ None Game ------ Seed SlugPropulsionCompactor Manual? 0 Play Time 00:18:52 Cumulative 15.0 hours Start 2024.04.16 @ 21:34:39 End 2024.04.16 @ 22:28:11 Sessions 1 Manual Loads 0 Difficulty Rogue Special Mode None Game No. 17 Rogue 16 Adventurer 1 Explorer 0 Win Type - Total 0 Types 0/0/0/0/0/0/0/0/0 Lore% 4 Gallery% 17 Achievement% 17 Wizard Run 0 Options --------- Layout 1 ASCII 0 Keyboard 0 Movement Mouse Keybinds 0 Fullscreen 2 Font 32/Terminus Map View 50x35 Zoom Use 0% Tactical HUD 1 Map Filters NONE Filters NONE Steam 1 RUN: 7312b5ab-c087-455d-9ba4-1f4da44a8a43